[Event "Snabb-SM för veteraner, 65+ 2019"]
[Site "Schackcentrum, Vegagatan 20, Gothenburg, Sweden"]
[Date "2019.10.05"]
[Round "5.7"]
[White "Franzen, Thomas"]
[Black "Degerfeldt, Sven"]
[Result "1/2-1/2"]
[TimeControl "15 minutes + 10 seconds per move from move one"]
[WhiteFideId "1706039"]
[BlackFideId "1717430"]
[WhiteElo "1860"]
[BlackElo "1822"]

1. d4 {[%clk 00:15:18]} {[%emt 00:00:01]} d5 {[%clk 00:15:17]} {[%emt
00:00:03]} 2. Bf4 {[%clk 00:15:25]} {[%emt 00:00:02]} c6 {[%clk 00:15:15]}
{[%emt 00:00:12]} 3. e3 {[%clk 00:15:29]} {[%emt 00:00:07]} Bf5 {[%clk
00:15:18]} {[%emt 00:00:07]} 4. g4 {[%clk 00:15:33]} {[%emt 00:00:06]} Bg6
{[%clk 00:14:15]} {[%emt 00:01:12]} 5. h4 {[%clk 00:15:28]} {[%emt 00:00:16]}
h6 {[%clk 00:14:06]} {[%emt 00:00:19]} 6. Bd3 {[%clk 00:15:28]} {[%emt
00:00:10]} Bxd3 {[%clk 00:14:03]} {[%emt 00:00:13]} 7. Qxd3 {[%clk 00:15:36]}
{[%emt 00:00:01]} e6 {[%clk 00:14:03]} {[%emt 00:00:11]} 8. Nd2 {[%clk
00:15:30]} {[%emt 00:00:16]} Bd6 {[%clk 00:13:49]} {[%emt 00:00:23]} 9. Ne2
{[%clk 00:15:17]} {[%emt 00:00:23]} Ne7 {[%clk 00:13:08]} {[%emt 00:00:51]} 10.
O-O-O {[%clk 00:14:37]} {[%emt 00:00:51]} Bxf4 {[%clk 00:12:32]} {[%emt
00:00:46]} 11. Nxf4 {[%clk 00:14:45]} {[%emt 00:00:02]} Nd7 {[%clk 00:12:22]}
{[%emt 00:00:20]} 12. Kb1 {[%clk 00:13:45]} {[%emt 00:01:10]} Qc7 {[%clk
00:12:04]} {[%emt 00:00:28]} 13. Nf3 {[%clk 00:13:13]} {[%emt 00:00:42]} e5
{[%clk 00:11:31]} {[%emt 00:00:43]} 14. dxe5 {[%clk 00:13:04]} {[%emt
00:00:19]} Nxe5 {[%clk 00:11:38]} {[%emt 00:00:02]} 15. Nxe5 {[%clk 00:13:10]}
{[%emt 00:00:04]} Qxe5 {[%clk 00:11:46]} {[%emt 00:00:02]} 16. Qb3 {[%clk
00:13:03]} {[%emt 00:00:17]} O-O-O {[%clk 00:11:21]} {[%emt 00:00:35]} 17. Nd3
{[%clk 00:12:10]} {[%emt 00:01:03]} Qc7 {[%clk 00:10:41]} {[%emt 00:00:49]} 18.
f4 {[%clk 00:10:44]} {[%emt 00:01:36]} f6 {[%emt 00:00:31]} 19. Qa3 {[%emt
00:00:08]} b6 {[%clk 00:09:26]} {[%emt 00:00:46]} 20. h5 {[%clk 00:10:06]}
{[%emt 00:00:48]} c5 {[%clk 00:09:23]} {[%emt 00:00:13]} 21. f5 {[%clk
00:09:51]} {[%emt 00:00:26]} Rd7 {[%clk 00:08:20]} {[%emt 00:01:12]} 22. Nf4
{[%clk 00:09:59]} {[%emt 00:00:02]} Qe5 {[%clk 00:08:13]} {[%emt 00:00:16]} 23.
Ne6 {[%clk 00:09:43]} {[%emt 00:00:27]} Nc6 {[%clk 00:08:01]} {[%emt 00:00:21]}
24. Qa6+ {[%clk 00:09:41]} {[%emt 00:00:13]} Kb8 {[%clk 00:07:37]} {[%emt
00:00:35]} 25. Nxc5 {[%clk 00:09:32]} {[%emt 00:00:19]} bxc5 {[%clk 00:07:27]}
{[%emt 00:00:19]} 26. Qxc6 {[%clk 00:09:40]} {[%emt 00:00:02]} Qc7 {[%clk
00:06:24]} {[%emt 00:01:13]} 27. Qe6 {[%clk 00:08:30]} {[%emt 00:01:21]} Rd6
{[%clk 00:05:30]} {[%emt 00:00:59]} 28. Qxd5 {[%clk 00:08:14]} {[%emt
00:00:32]} Rxd5 {[%clk 00:05:38]} {[%emt 00:00:02]} 29. Rxd5 {[%clk 00:08:23]}
Rd8 {[%clk 00:05:40]} {[%emt 00:00:07]} 30. Rhd1 {[%clk 00:08:29]} {[%emt
00:00:04]} Rxd5 {[%clk 00:05:48]} {[%emt 00:00:03]} 31. Rxd5 {[%clk 00:08:37]}
{[%emt 00:00:02]} Qc6 {[%clk 00:05:49]} {[%emt 00:00:08]} 32. e4 {[%clk
00:08:44]} {[%emt 00:00:04]} Qb5 {[%clk 00:05:27]} {[%emt 00:00:32]} 33. b3
{[%clk 00:07:00]} {[%emt 00:01:54]} Qb4 {[%clk 00:04:43]} {[%emt 00:00:54]} 34.
Rd8+ {[%clk 00:04:42]} {[%emt 00:02:28]} Kc7 {[%clk 00:04:36]} {[%emt
00:00:16]} 35. Re8 {[%clk 00:04:51]} {[%emt 00:00:01]} c4 {[%clk 00:03:58]}
{[%emt 00:00:48]} 36. a3 {[%clk 00:03:31]} {[%emt 00:01:31]} Qxa3 {[%clk
00:03:42]} {[%emt 00:00:25]} 37. bxc4 {[%clk 00:03:38]} {[%emt 00:00:03]} Qb4+
{[%clk 00:03:35]} {[%emt 00:00:16]} 38. Kc1 {[%clk 00:03:46]} {[%emt 00:00:03]}
Qxc4 {[%clk 00:03:29]} {[%emt 00:00:15]} 39. Re7+ {[%clk 00:03:50]} {[%emt
00:00:06]} Kb6 {[%clk 00:03:35]} {[%emt 00:00:03]} 40. Rxg7 {[%clk 00:03:58]}
{[%emt 00:00:02]} Qxe4 {[%clk 00:03:32]} {[%emt 00:00:13]} 41. Rg6 {[%clk
00:03:57]} {[%emt 00:00:11]} Qe5 {[%clk 00:02:35]} {[%emt 00:01:08]} 42. Kb1
{[%clk 00:04:06]} {[%emt 00:00:01]} Kb5 {[%clk 00:02:31]} {[%emt 00:00:13]} 43.
Rxh6 {[%clk 00:04:14]} {[%emt 00:00:02]} a5 {[%clk 00:02:38]} {[%emt 00:00:03]}
44. Rh7 {[%clk 00:04:15]} {[%emt 00:00:08]} Ka4 {[%clk 00:02:37]} {[%emt
00:00:11]} 45. Rb7 {[%clk 00:04:07]} {[%emt 00:00:16]} Qd5 {[%clk 00:01:22]}
{[%emt 00:01:27]} 46. Rb3 {[%clk 00:04:09]} {[%emt 00:00:08]} Qd1+ {[%clk
00:01:23]} {[%emt 00:00:09]} 47. Kb2 {[%clk 00:04:15]} {[%emt 00:00:05]} Qxg4
{[%clk 00:01:28]} {[%emt 00:00:05]} 48. h6 {[%clk 00:03:31]} {[%emt 00:00:55]}
Qxf5 {[%clk 00:01:34]} {[%emt 00:00:03]} 49. Ra3+ {[%clk 00:03:34]} {[%emt
00:00:07]} Kb5 {[%clk 00:01:22]} {[%emt 00:00:21]} 50. Rd3 {[%clk 00:02:35]}
{[%emt 00:01:10]} Qh7 {[%clk 00:00:46]} {[%emt 00:00:46]} 51. Rh3 {[%clk
00:02:41]} {[%emt 00:00:05]} f5 {[%clk 00:00:53]} {[%emt 00:00:03]} 52. Kb3
{[%clk 00:02:37]} {[%emt 00:00:14]} a4+ {[%clk 00:00:59]} {[%emt 00:00:04]} 53.
Kb2 {[%clk 00:02:41]} {[%emt 00:00:06]} f4 {[%clk 00:01:05]} {[%emt 00:00:03]}
54. Rh4 {[%clk 00:02:32]} {[%emt 00:00:19]} f3 {[%clk 00:01:05]} {[%emt
00:00:10]} 55. Rf4 {[%clk 00:02:31]} {[%emt 00:00:11]} Qxh6 {[%clk 00:01:02]}
{[%emt 00:00:13]} 56. Rxf3 {[%clk 00:02:40]} {[%emt 00:00:01]} Qg7+ {[%clk
00:01:04]} {[%emt 00:00:08]} 57. Kc1 {[%clk 00:02:46]} {[%emt 00:00:03]} Qg5+
{[%clk 00:01:10]} {[%emt 00:00:05]} 58. Kb2 {[%clk 00:02:52]} {[%emt 00:00:04]}
Qe5+ {[%clk 00:01:17]} {[%emt 00:00:02]} 59. Kc1 {[%clk 00:02:58]} {[%emt
00:00:04]} Qe1+ {[%clk 00:01:24]} {[%emt 00:00:03]} 60. Kb2 {[%clk 00:03:07]}
Qb4+ {[%clk 00:01:22]} {[%emt 00:00:13]} 61. Kc1 {[%clk 00:03:16]} {[%emt
00:00:01]} a3 {[%clk 00:01:25]} {[%emt 00:00:08]} 62. Rb3 {[%clk 00:03:23]}
{[%emt 00:00:03]} Qxb3 {[%clk 00:00:43]} {[%emt 00:00:51]} 63. cxb3 {[%clk
00:03:31]} {[%emt 00:00:03]} Kb4 {[%clk 00:00:52]} {[%emt 00:00:01]} 64. Kb1
{[%clk 00:03:25]} {[%emt 00:00:16]} Kxb3 {[%clk 00:01:00]} {[%emt 00:00:02]} 65.
Ka1 {[%clk 00:03:34]} {[%emt 00:00:01]} 1/2-1/2

[Event "Snabb-SM för veteraner, 65+ 2019"]
[Site "Schackcentrum, Vegagatan 20, Gothenburg, Sweden"]
[Date "2019.10.05"]
[Round "5.8"]
[White "Bohlin, Jan"]
[Black "Nilsson, Weine"]
[Result "0-1"]
[TimeControl "15 minutes + 10 seconds per move from move one"]
[WhiteFideId "1758616"]
[BlackFideId "1716727"]
[WhiteElo "1794"]
[BlackElo "1847"]

1. c4 {[%clk 00:15:18]} {[%emt 00:00:01]} c5 {[%clk 00:15:18]} {[%emt
00:00:02]} 2. g3 {[%clk 00:15:22]} {[%emt 00:00:07]} Nc6 {[%clk 00:15:26]}
{[%emt 00:00:03]} 3. Nc3 {[%clk 00:15:30]} {[%emt 00:00:02]} g6 {[%clk
00:15:34]} {[%emt 00:00:02]} 4. Bg2 {[%clk 00:15:39]} Bg7 {[%clk 00:15:42]}
{[%emt 00:00:02]} 5. Nf3 {[%clk 00:15:37]} {[%emt 00:00:12]} d6 {[%clk
00:15:43]} {[%emt 00:00:08]} 6. O-O {[%clk 00:15:41]} {[%emt 00:00:06]} e6
{[%clk 00:15:33]} {[%emt 00:00:20]} 7. e3 {[%clk 00:15:12]} {[%emt 00:00:39]}
Nge7 {[%clk 00:15:41]} {[%emt 00:00:02]} 8. d4 {[%clk 00:15:12]} {[%emt
00:00:10]} cxd4 {[%clk 00:15:28]} {[%emt 00:00:23]} 9. exd4 {[%clk 00:15:18]}
{[%emt 00:00:04]} O-O {[%clk 00:14:41]} {[%emt 00:00:57]} 10. Bf4 {[%clk
00:13:55]} {[%emt 00:01:33]} e5 {[%clk 00:13:02]} {[%emt 00:01:50]} 11. dxe5
{[%clk 00:13:54]} {[%emt 00:00:10]} dxe5 {[%clk 00:13:04]} {[%emt 00:00:08]} 12.
Bg5 {[%clk 00:13:35]} {[%emt 00:00:29]} f6 {[%clk 00:13:10]} {[%emt 00:00:04]}
13. Be3 {[%clk 00:13:11]} {[%emt 00:00:34]} Be6 {[%clk 00:13:12]} {[%emt
00:00:08]} 14. b3 {[%clk 00:12:53]} {[%emt 00:00:28]} Qa5 {[%clk 00:13:04]}
{[%emt 00:00:13]} 15. Rc1 {[%clk 00:12:38]} {[%emt 00:00:29]} Rad8 {[%clk
00:12:57]} {[%emt 00:00:17]} 16. Qe2 {[%clk 00:11:41]} {[%emt 00:01:07]} Nf5
{[%clk 00:12:00]} {[%emt 00:01:07]} 17. Bd2 {[%clk 00:11:13]} {[%emt 00:00:38]}
Ncd4 {[%clk 00:11:43]} {[%emt 00:00:26]} 18. Nxd4 {[%clk 00:10:54]} {[%emt
00:00:29]} Nxd4 {[%clk 00:11:36]} {[%emt 00:00:16]} 19. Qe3 {[%clk 00:10:01]}
{[%emt 00:01:04]} Nf5 {[%clk 00:10:44]} {[%emt 00:03:41]} 20. Qe2 {[%clk
00:07:50]} {[%emt 00:00:01]} Qa6 {[%clk 00:09:01]} {[%emt 00:01:50]} 21. Rfd1
{[%clk 00:07:35]} {[%emt 00:00:28]} Rd7 {[%clk 00:08:51]} {[%emt 00:00:20]} 22.
Na4 {[%clk 00:04:44]} {[%emt 00:03:00]} b6 {[%clk 00:07:24]} {[%emt 00:01:52]}
23. Bc3 {[%clk 00:03:19]} {[%emt 00:01:42]} Rfd8 {[%clk 00:07:28]} {[%emt
00:00:06]} 24. Rxd7 {[%clk 00:03:21]} {[%emt 00:00:08]} Rxd7 {[%clk 00:07:32]}
{[%emt 00:00:06]} 25. Rd1 {[%clk 00:03:25]} {[%emt 00:00:06]} Qc8 {[%clk
00:07:19]} {[%emt 00:00:19]} 26. Rxd7 {[%clk 00:03:08]} {[%emt 00:00:31]} Qxd7
{[%clk 00:07:16]} {[%emt 00:00:12]} 27. Qd2 {[%clk 00:02:13]} {[%emt 00:01:06]}
Nd4 {[%clk 00:05:54]} {[%emt 00:01:31]} 28. c5 {[%clk 00:01:35]} {[%emt
00:00:49]} b5 {[%clk 00:05:24]} {[%emt 00:00:41]} 29. Nb2 {[%clk 00:01:35]}
{[%emt 00:00:11]} f5 {[%clk 00:04:25]} {[%emt 00:01:08]} 30. Nd3 {[%clk
00:01:19]} {[%emt 00:00:25]} e4 {[%clk 00:03:19]} {[%emt 00:01:17]} 31. Nf4
{[%clk 00:01:13]} {[%emt 00:00:16]} Bf7 {[%clk 00:03:12]} {[%emt 00:00:17]} 32.
c6 {[%clk 00:00:39]} {[%emt 00:00:44]} Qxc6 {[%clk 00:01:29]} {[%emt 00:01:52]}
33. Bxd4 {[%clk 00:00:47]} {[%emt 00:00:02]} g5 {[%clk 00:01:30]} {[%emt
00:00:08]} 34. Ne2 {[%clk 00:00:34]} {[%emt 00:00:23]} Qd5 {[%clk 00:01:21]}
{[%emt 00:00:19]} 35. Bc3 {[%clk 00:00:41]} {[%emt 00:00:03]} Bxc3 {[%clk
00:01:08]} {[%emt 00:00:22]} 36. Qxd5 {[%clk 00:00:46]} {[%emt 00:00:05]} Bxd5
{[%clk 00:01:15]} {[%emt 00:00:03]} 37. Nxc3 {[%clk 00:00:55]} {[%emt
00:00:01]} Bc6 {[%clk 00:01:23]} {[%emt 00:00:02]} 38. Kf1 {[%clk 00:01:02]}
{[%emt 00:00:03]} Kf7 {[%clk 00:01:31]} {[%emt 00:00:02]} 39. Ke2 {[%clk
00:01:10]} {[%emt 00:00:02]} Ke6 {[%clk 00:01:40]} {[%emt 00:00:02]} 40. Ke3
{[%clk 00:01:19]} Ke5 {[%clk 00:01:38]} {[%emt 00:00:12]} 41. Bf1 {[%clk
00:01:21]} {[%emt 00:00:08]} b4 {[%clk 00:01:45]} {[%emt 00:00:04]} 42. Nb1
{[%clk 00:01:16]} {[%emt 00:00:14]} f4+ {[%clk 00:01:49]} {[%emt 00:00:05]} 43.
gxf4+ {[%clk 00:01:25]} {[%emt 00:00:01]} gxf4+ {[%clk 00:01:57]} {[%emt
00:00:02]} 44. Kd2 {[%clk 00:01:27]} {[%emt 00:00:08]} Kd4 {[%clk 00:01:54]}
{[%emt 00:00:12]} 45. a3 {[%clk 00:01:23]} {[%emt 00:00:15]} a5 {[%clk
00:02:03]} 46. axb4 {[%clk 00:01:32]} {[%emt 00:00:02]} axb4 {[%clk 00:02:12]}
{[%emt 00:00:02]} 47. Bc4 {[%clk 00:01:10]} {[%emt 00:00:32]} Bd7 {[%clk
00:01:56]} {[%emt 00:00:17]} 48. Ke2 {[%clk 00:01:17]} {[%emt 00:00:11]} Bg4+
{[%clk 00:02:01]} {[%emt 00:00:04]} 49. Kf1 {[%clk 00:01:20]} {[%emt 00:00:06]}
Bh3+ {[%clk 00:02:06]} {[%emt 00:00:06]} 50. Kg1 {[%clk 00:01:22]} {[%emt
00:00:08]} e3 {[%clk 00:02:03]} {[%emt 00:00:14]} 51. fxe3+ {[%clk 00:01:21]}
{[%emt 00:00:12]} fxe3 {[%clk 00:02:10]} {[%emt 00:00:01]} 52. Bf1 {[%clk
00:00:53]} {[%emt 00:00:39]} Bf5 {[%clk 00:02:18]} {[%emt 00:00:02]} 53. Bc4
{[%clk 00:00:32]} {[%emt 00:00:31]} Bxb1 {[%clk 00:02:25]} {[%emt 00:00:03]} 54.
Kg2 {[%clk 00:00:31]} {[%emt 00:00:11]} Kc3 {[%clk 00:02:09]} {[%emt 00:00:26]}
55. Kf3 {[%clk 00:00:26]} {[%emt 00:00:15]} Kd2 {[%clk 00:02:15]} {[%emt
00:00:04]} 56. Bb5 {[%clk 00:00:17]} {[%emt 00:00:19]} Bd3 {[%clk 00:02:21]}
0-1

[Event "Snabb-SM för veteraner, 65+ 2019"]
[Site "Schackcentrum, Vegagatan 20, Gothenburg, Sweden"]
[Date "2019.10.05"]
[Round "5.9"]
[White "Alfven, Jorgen"]
[Black "Olesen, Christer"]
[Result "0-1"]
[TimeControl "15 minutes + 10 seconds per move from move one"]
[WhiteFideId "1715950"]
[BlackFideId "1739069"]
[WhiteElo "1791"]
[BlackElo "1809"]

1. d4 {[%clk 00:15:17]} {[%emt 00:00:02]} Nf6 {[%clk 00:15:12]} {[%emt
00:00:08]} 2. Nf3 {[%clk 00:15:25]} {[%emt 00:00:02]} d5 {[%clk 00:15:10]}
{[%emt 00:00:12]} 3. e3 {[%clk 00:15:21]} {[%emt 00:00:14]} c6 {[%clk
00:14:59]} {[%emt 00:00:21]} 4. Bd3 {[%clk 00:15:24]} {[%emt 00:00:07]} Bg4
{[%clk 00:14:44]} {[%emt 00:00:25]} 5. c3 {[%clk 00:14:51]} {[%emt 00:00:43]}
e6 {[%clk 00:14:49]} {[%emt 00:00:05]} 6. Nbd2 {[%clk 00:14:58]} {[%emt
00:00:03]} Bd6 {[%clk 00:14:22]} {[%emt 00:00:37]} 7. h3 {[%clk 00:15:05]}
{[%emt 00:00:03]} Bh5 {[%clk 00:14:30]} {[%emt 00:00:02]} 8. Qc2 {[%clk
00:14:53]} {[%emt 00:00:22]} Nbd7 {[%clk 00:14:23]} {[%emt 00:00:17]} 9. b3
{[%clk 00:14:51]} {[%emt 00:00:13]} Rc8 {[%clk 00:14:17]} {[%emt 00:00:16]} 10.
Bb2 {[%clk 00:14:55]} {[%emt 00:00:05]} O-O {[%clk 00:13:55]} {[%emt 00:00:32]}
11. g4 {[%clk 00:14:38]} {[%emt 00:00:27]} Bg6 {[%clk 00:14:03]} {[%emt
00:00:02]} 12. Bxg6 {[%clk 00:14:45]} {[%emt 00:00:03]} hxg6 {[%clk 00:14:11]}
{[%emt 00:00:02]} 13. c4 {[%clk 00:14:35]} {[%emt 00:00:21]} c5 {[%clk
00:13:55]} {[%emt 00:00:26]} 14. Ne5 {[%clk 00:13:51]} {[%emt 00:00:53]} cxd4
{[%clk 00:12:01]} {[%emt 00:02:04]} 15. exd4 {[%clk 00:13:51]} {[%emt
00:00:10]} Qc7 {[%clk 00:10:37]} {[%emt 00:01:34]} 16. f4 {[%clk 00:11:44]}
{[%emt 00:02:17]} dxc4 {[%clk 00:08:37]} {[%emt 00:02:10]} 17. bxc4 {[%clk
00:11:38]} {[%emt 00:00:16]} Nd5 {[%clk 00:08:09]} {[%emt 00:00:38]} 18. Qe4
{[%clk 00:09:45]} {[%emt 00:02:04]} N7f6 {[%clk 00:08:00]} {[%emt 00:00:19]} 19.
Qf3 {[%clk 00:09:43]} {[%emt 00:00:12]} Nb4 {[%clk 00:07:01]} {[%emt 00:01:09]}
20. O-O {[%clk 00:09:20]} {[%emt 00:00:32]} Rcd8 {[%clk 00:06:14]} {[%emt
00:00:57]} 21. g5 {[%clk 00:08:23]} {[%emt 00:01:07]} Nh5 {[%clk 00:06:00]}
{[%emt 00:00:24]} 22. a3 {[%clk 00:07:10]} {[%emt 00:01:24]} Bxe5 {[%clk
00:05:29]} {[%emt 00:00:41]} 23. fxe5 {[%clk 00:07:09]} {[%emt 00:00:11]} Nc2
{[%clk 00:05:31]} {[%emt 00:00:08]} 24. Rab1 {[%clk 00:03:37]} {[%emt
00:03:42]} Nxd4 {[%clk 00:05:21]} {[%emt 00:00:19]} 25. Bxd4 {[%clk 00:03:45]}
{[%emt 00:00:02]} Rxd4 {[%clk 00:05:11]} {[%emt 00:00:20]} 26. Rxb7 {[%clk
00:03:52]} {[%emt 00:00:03]} Qc5 {[%clk 00:04:51]} {[%emt 00:00:30]} 27. Nb3
{[%clk 00:02:27]} {[%emt 00:01:36]} Qxe5 {[%clk 00:03:11]} {[%emt 00:01:50]} 28.
Nxd4 {[%clk 00:01:51]} {[%emt 00:00:46]} Qxd4+ {[%clk 00:03:20]} 29. Kh1 {[%clk
00:01:53]} {[%emt 00:00:08]} Qxc4 {[%clk 00:02:26]} {[%emt 00:01:03]} 30. Rxf7
{[%clk 00:01:59]} {[%emt 00:00:04]} Rxf7 {[%clk 00:02:28]} {[%emt 00:00:09]} 31.
Qxf7+ {[%clk 00:02:07]} {[%emt 00:00:02]} Kh7 {[%clk 00:02:37]} 32. Qf3 {[%clk
00:01:49]} {[%emt 00:00:29]} e5 {[%clk 00:02:17]} {[%emt 00:00:30]} 33. Re1
{[%clk 00:01:40]} {[%emt 00:00:18]} e4 {[%clk 00:02:04]} {[%emt 00:00:23]} 34.
Qe3 {[%clk 00:01:34]} {[%emt 00:00:16]} Qe6 {[%clk 00:02:07]} {[%emt 00:00:07]}
35. Kh2 {[%clk 00:01:37]} {[%emt 00:00:07]} Qf5 {[%emt 00:00:39]} 36. Qxe4
{[%clk 00:01:29]} {[%emt 00:00:02]} Qf2+ {[%clk 00:01:56]} {[%emt 00:00:07]} 37.
Qg2 {[%clk 00:00:36]} {[%emt 00:01:02]} Qxe1 {[%clk 00:02:04]} {[%emt
00:00:02]} 38. Qf3 {[%clk 00:00:20]} {[%emt 00:00:26]} Qd2+ {[%clk 00:02:00]}
{[%emt 00:00:14]} 39. Qg2 {[%clk 00:00:24]} {[%emt 00:00:05]} Qxg2+ {[%clk
00:01:51]} {[%emt 00:00:19]} 40. Kxg2 {[%clk 00:00:33]} {[%emt 00:00:02]} Nf4+
{[%clk 00:01:59]} {[%emt 00:00:01]} 41. Kg3 {[%clk 00:00:40]} {[%emt 00:00:03]}
Nd3 {[%clk 00:02:03]} {[%emt 00:00:06]} 42. Kf3 {[%clk 00:00:47]} {[%emt
00:00:03]} Kg8 {[%clk 00:01:36]} {[%emt 00:00:37]} 43. Ke3 {[%clk 00:00:52]}
{[%emt 00:00:05]} Nc5 {[%clk 00:01:38]} {[%emt 00:00:08]} 44. h4 {[%clk
00:00:46]} {[%emt 00:00:16]} Kf7 {[%clk 00:01:43]} {[%emt 00:00:05]} 45. Kd4
{[%clk 00:00:55]} Nd7 {[%clk 00:01:21]} {[%emt 00:00:32]} 46. Kd5 {[%clk
00:01:02]} {[%emt 00:00:03]} Ke7 {[%clk 00:01:25]} {[%emt 00:00:06]} 47. Kc6
{[%clk 00:00:57]} {[%emt 00:00:15]} Ke6 {[%clk 00:01:15]} {[%emt 00:00:20]} 48.
a4 {[%clk 00:00:57]} {[%emt 00:00:10]} Ne5+ {[%clk 00:00:55]} {[%emt 00:00:30]}
49. Kb7 {[%clk 00:01:00]} {[%emt 00:00:08]} Kd6 {[%clk 00:00:44]} {[%emt
00:00:20]} 50. Kxa7 {[%clk 00:00:56]} {[%emt 00:00:14]} Kc7 {[%clk 00:00:50]}
{[%emt 00:00:04]} 51. Ka6 {[%clk 00:00:59]} {[%emt 00:00:07]} Nf3 {[%clk
00:00:37]} {[%emt 00:00:23]} 52. Kb5 {[%clk 00:00:55]} {[%emt 00:00:13]} Nxh4
{[%clk 00:00:38]} {[%emt 00:00:09]} 53. Kc5 {[%clk 00:00:36]} {[%emt 00:00:30]}
Nf3 {[%clk 00:00:38]} {[%emt 00:00:10]} 54. a5 {[%clk 00:00:36]} {[%emt
00:00:10]} Kb7 {[%clk 00:00:40]} {[%emt 00:00:08]} 55. Kd5 {[%clk 00:00:39]}
{[%emt 00:00:06]} Nxg5 {[%clk 00:00:44]} {[%emt 00:00:06]} 56. Ke5 {[%clk
00:00:46]} {[%emt 00:00:03]} Ka6 {[%clk 00:00:48]} {[%emt 00:00:07]} 57. Kf4
{[%clk 00:00:52]} {[%emt 00:00:04]} Nf7 {[%clk 00:00:55]} {[%emt 00:00:03]} 58.
Ke4 {[%clk 00:00:52]} {[%emt 00:00:10]} Kxa5 {[%clk 00:01:04]} {[%emt
00:00:01]} 59. Kd5 {[%clk 00:01:01]} g5 {[%clk 00:01:12]} {[%emt 00:00:02]} 60.
Ke4 {[%clk 00:01:07]} {[%emt 00:00:04]} Kb5 {[%clk 00:01:20]} {[%emt 00:00:02]}
61. Kf5 {[%clk 00:01:16]} Kc5 {[%clk 00:01:27]} {[%emt 00:00:03]} 0-1

[Event "Snabb-SM för veteraner, 65+ 2019"]
[Site "Schackcentrum, Vegagatan 20, Gothenburg, Sweden"]
[Date "2019.10.05"]
[Round "6.1"]
[White "Stroem, Leif"]
[Black "Fransson, Lennart"]
[Result "1/2-1/2"]
[TimeControl "15 minutes + 10 seconds per move from move one"]
[WhiteFideId "1709410"]
[BlackFideId "1706756"]
[WhiteElo "2014"]
[BlackElo "1983"]

1. c4 {[%clk 00:15:18]} Nf6 {[%clk 00:15:10]} {[%emt 00:00:09]} 2. g3 {[%clk
00:15:27]} {[%emt 00:00:01]} g6 {[%clk 00:15:18]} {[%emt 00:00:02]} 3. Bg2
{[%clk 00:15:36]} Bg7 {[%clk 00:15:27]} {[%emt 00:00:02]} 4. Nc3 {[%clk
00:15:44]} {[%emt 00:00:02]} O-O {[%clk 00:15:34]} {[%emt 00:00:03]} 5. e4
{[%clk 00:15:51]} {[%emt 00:00:04]} d6 {[%clk 00:15:42]} {[%emt 00:00:02]} 6.
Nge2 {[%clk 00:15:59]} {[%emt 00:00:02]} Na6 {[%clk 00:15:40]} {[%emt
00:00:13]} 7. O-O {[%clk 00:16:05]} {[%emt 00:00:04]} c6 {[%clk 00:15:45]}
{[%emt 00:00:05]} 8. d4 {[%clk 00:15:56]} {[%emt 00:00:19]} Bd7 {[%clk
00:15:50]} {[%emt 00:00:04]} 9. h3 {[%clk 00:15:48]} {[%emt 00:00:17]} Nc7
{[%clk 00:15:58]} {[%emt 00:00:03]} 10. Be3 {[%clk 00:15:55]} {[%emt 00:00:04]}
Rb8 {[%clk 00:15:56]} {[%emt 00:00:12]} 11. Qd2 {[%clk 00:15:56]} {[%emt
00:00:08]} b5 {[%clk 00:15:59]} {[%emt 00:00:07]} 12. b3 {[%clk 00:15:48]}
{[%emt 00:00:18]} bxc4 {[%clk 00:16:00]} {[%emt 00:00:09]} 13. bxc4 {[%clk
00:15:57]} {[%emt 00:00:02]} Qc8 {[%clk 00:16:09]} 14. Kh2 {[%clk 00:15:55]}
{[%emt 00:00:13]} Qa6 {[%clk 00:16:18]} {[%emt 00:00:01]} 15. c5 {[%clk
00:15:41]} {[%emt 00:00:24]} dxc5 {[%clk 00:15:57]} {[%emt 00:00:30]} 16. dxc5
{[%clk 00:15:50]} {[%emt 00:00:02]} Rfd8 {[%clk 00:16:05]} {[%emt 00:00:02]} 17.
Qc1 {[%clk 00:15:51]} {[%emt 00:00:09]} Qc4 {[%clk 00:16:01]} {[%emt 00:00:14]}
1/2-1/2